bitfinex-derivatives/quotes_SOLF0:USTF0_20250409
["timestamp","ask_amount","ask_price","bid_price","bid_amount"]
[1744220958951,39.18408467,117.86,117.69,4.3357]
[1744220958952,39.18408467,117.82,117.71,39.18408467]
[1744220959158,39.18408467,117.83,117.71,39.18408467]
[1744220959356,39.18408467,117.83,117.76,8.4972]
[1744220959565,39.18408467,117.83,117.71,39.18408467]
[1744220959866,39.18408467,117.83,117.73,39.18408467]
[1744220960067,39.18408467,117.77,117.67,9.1673]
[1744220960262,39.18408467,117.77,117.66,39.18408467]
[1744220960561,39.18408467,117.83,117.72,39.18408467]
[1744220960861,39.18408467,117.83,117.71,0.06303134]
[1744220961062,39.18408467,117.83,117.7,39.18408467]
[1744220961063,39.18408467,117.81,117.7,39.18408467]
[1744220961267,39.18408467,117.77,117.64,39.18408467]
[1744220961455,39.18408467,117.73,117.56,628.08804521]
[1744220961652,39.18408467,117.83,117.56,628.08804521]
[1744220961653,8.844,117.76,117.66,39.18408467]
[1744220961869,8.844,117.76,117.69,8.5019]
[1744220962062,48.02808467,117.76,117.6,39.18408467]
[1744220962362,0.0545258,117.72,117.7,0.06483759]
[1744220962952,550.4,117.82,117.71,39.18408467]
[1744220963257,39.18408467,117.87,117.75,39.18408467]
[1744220963458,39.18408467,117.87,117.77,39.18408467]
[1744220963658,39.18408467,117.87,117.75,39.18408467]
[1744220964158,0.06483096,117.82,117.8,0.06181769]
[1744220964369,550.4,117.96,117.81,39.18408467]
[1744220964658,39.18408467,117.89,117.8,0.06181769]
[1744220964864,39.18408467,117.89,117.79,39.18408467]
[1744220965256,39.18408467,117.89,117.8,8.4946]
[1744220965460,39.18408467,117.89,117.76,62.0]
[1744220965667,39.18408467,117.89,117.83,0.05622069]
[1744220965668,39.18408467,117.85,117.83,0.05622069]
[1744220965854,39.18408467,117.85,117.72,13.0456]
[1744220965855,39.18408467,117.85,117.72,52.22968467]
[1744220966166,39.18408467,117.85,117.74,39.18408467]
[1744220966358,39.18408467,117.85,117.75,8.4981]
[1744220966560,39.18408467,117.81,117.72,13.0456]
[1744220967067,39.18408467,117.77,117.64,39.18408467]
[1744220967363,0.06375367,117.78,117.68,39.18408467]
[1744220967661,39.18408467,117.77,117.66,39.18408467]
[1744220967855,39.18408467,117.73,117.65,1.6999575]
[1744220968061,39.18408467,117.67,117.57,77.68804521]
[1744220968255,39.18408467,117.64,117.57,77.68804521]
[1744220968470,39.18408467,117.62,117.58,77.68804521]
[1744220968667,39.18408467,117.65,117.58,77.68804521]
[1744220968871,4.6086,117.7,117.6,39.18408467]
[1744220969054,563.7288,117.8,117.6,39.18408467]
[1744220969363,39.18408467,117.78,117.58,82.23404521]
[1744220969563,39.18408467,117.68,117.58,82.23404521]
[1744220969764,39.18408467,117.66,117.58,82.23404521]
[1744220969965,550.38,117.71,117.66,8.5046]
[1744220970154,589.56408467,117.78,117.6,39.18408467]
[1744220970358,39.18408467,117.7,117.61,4.592]
[1744220970555,39.24177853,117.7,117.67,0.05347043]
[1744220970765,39.18408467,117.68,117.58,77.68804521]
[1744220971271,39.18408467,117.7,117.58,116.87212988]
[1744220971468,39.18408467,117.68,117.58,39.18408467]
[1744220971658,39.18408467,117.66,117.55,39.18408467]
[1744220972065,39.18408467,117.66,117.54,43.50348467]
[1744220972269,0.05615542,117.62,117.59,0.05535387]
[1744220972464,78.36816934,117.6,117.46,4.3194]
[1744220972665,39.18408467,117.53,117.46,4.3194]
[1744220972863,39.18408467,117.53,117.45,77.68804521]
[1744220972864,39.18408467,117.51,117.45,77.68804521]
[1744220973168,39.18408467,117.49,117.45,77.68804521]
[1744220973467,39.18408467,117.46,117.42,198.49676491]
[1744220973769,47.88571857,117.48,117.42,198.49676491]
[1744220973964,39.18408467,117.43,117.42,198.49676491]
[1744220974164,39.18408467,117.44,117.42,198.49676491]
[1744220974367,0.0536991,117.44,117.42,198.49676491]
[1744220974562,39.23778377,117.44,117.42,198.49676491]
[1744220974764,0.0536991,117.44,117.42,198.49676491]
[1744220974964,550.62,117.52,117.42,207.01676491]
[1744220975170,39.18408467,117.54,117.43,39.18408467]
[1744220975369,39.18408467,117.56,117.43,39.18408467]
[1744220975569,43.42568467,117.58,117.47,39.18408467]
[1744220975869,590.08408467,117.61,117.49,39.18408467]
[1744220976073,39.18408467,117.59,117.47,39.18408467]
[1744220976271,39.18408467,117.55,117.54,0.05868022]
[1744220976777,39.18408467,117.55,117.48,62.0]
[1744220976971,39.18408467,117.51,117.4,39.18408467]
[1744220977278,39.18408467,117.59,117.4,39.18408467]
[1744220977279,0.06495376,117.56,117.46,39.18408467]
[1744220977471,39.18408467,117.63,117.52,39.18408467]
[1744220977667,39.18408467,117.66,117.54,39.18408467]
[1744220978076,564.561,117.71,117.56,39.18408467]
[1744220978278,599.13948467,117.71,117.59,0.05381689]
[1744220978478,590.26408467,117.71,117.6,39.18408467]
[1744220978779,39.18408467,117.72,117.62,39.18408467]
[1744220978982,39.18408467,117.72,117.6,39.18408467]
[1744220979374,39.18408467,117.72,117.58,8.6234]
[1744220979375,39.18408467,117.72,117.61,39.18408467]
[1744220979680,0.06418894,117.67,117.65,0.06519606]
[1744220979978,11.48770906,117.75,117.66,101.18408467]
[1744220980378,39.18408467,117.73,117.66,62.0]
[1744220980570,11.48770906,117.75,117.69,8.502]
[1744220980770,11.48770906,117.75,117.66,62.0]
[1744220981082,11.48770906,117.75,117.7,8.5018]
[1744220981273,0.05434477,117.72,117.69,0.06182352]
[1744220981678,0.05434477,117.72,117.71,8.5012]
[1744220981872,0.05434477,117.72,117.69,0.06182352]
[1744220982074,11.45953292,117.93,117.7,39.18408467]
[1744220982268,39.18408467,117.84,117.72,39.18408467]
[1744220982480,1.6973606,117.83,117.8,39.18408467]
[1744220983281,1.6973606,117.83,117.82,8.4932]
[1744220983473,1.76030773,117.83,117.82,8.4932]
[1744220983674,59.22761759,117.93,117.82,39.18408467]
[1744220984077,59.22761759,117.93,117.8,0.05746075]
[1744220984078,39.18408467,117.91,117.8,39.18408467]
[1744220984396,39.18408467,117.89,117.78,39.18408467]
[1744220984683,39.18408467,117.87,117.76,39.18408467]
[1744220984883,0.05469647,117.85,117.82,0.06036173]
[1744220985484,39.18408467,117.89,117.79,62.0]
[1744220985678,0.06323305,117.85,117.82,0.05880004]
[1744220986080,39.18408467,117.86,117.82,0.05880004]
[1744220986275,39.18408467,117.84,117.73,4.3747]
[1744220986479,39.18408467,117.81,117.71,39.18408467]
[1744220986688,39.18408467,117.79,117.67,52.65958467]
[1744220986884,39.18408467,117.77,117.71,8.5008]
[1744220987097,39.18408467,117.77,117.67,13.4755]
[1744220987382,39.18408467,117.77,117.71,8.5011]
[1744220987585,39.18408467,117.77,117.67,13.4755]
[1744220987782,0.0539973,117.73,117.71,0.05918779]
[1744220988680,0.0539973,117.73,117.72,8.5005]
[1744220988980,39.18408467,117.81,117.71,0.05918779]
[1744220989177,39.18408467,117.77,117.71,0.05918779]
[1744220989390,39.18408467,117.73,117.62,4.5078]
[1744220989592,39.18408467,117.77,117.48,39.18408467]
[1744220989593,39.18408467,117.68,117.61,8.5078]
[1744220989891,39.18408467,117.64,117.49,4.5078]
[1744220990088,39.18408467,117.66,117.57,8.5107]
[1744220990089,47.68898467,117.66,117.57,8.5107]
[1744220990294,43.62288467,117.72,117.54,39.18408467]
[1744220990295,39.18408467,117.67,117.54,39.18408467]
[1744220990590,39.18408467,117.61,117.55,8.5121]
[1744220990790,39.18408467,117.59,117.5,4.2214]
[1744220991087,550.7,117.65,117.54,39.18408467]
[1744220991283,550.7,117.65,117.5,4.2214]
[1744220991581,39.18408467,117.62,117.5,4.2214]
[1744220991783,39.18408467,117.58,117.49,4.5078]
[1744220991982,0.06413633,117.57,117.55,0.06166578]
[1744220992196,0.06413633,117.57,117.56,8.512]
[1744220992389,0.06413633,117.57,117.51,62.0]
[1744220992589,0.06413633,117.57,117.55,0.05488593]
[1744220992982,39.18408467,117.64,117.55,0.05488593]
[1744220993182,39.18408467,117.68,117.55,0.05488593]
[1744220993379,39.18408467,117.68,117.63,8.5069]
[1744220993688,590.12408467,117.7,117.58,39.18408467]
[1744220993886,590.12408467,117.7,117.63,8.5068]
[1744220994086,39.18408467,117.69,117.58,39.18408467]
[1744220994283,0.05511314,117.65,117.63,0.06244078]
[1744220994993,0.05511314,117.65,117.63,8.56904078]
[1744220995190,0.05511314,117.65,117.63,0.06244078]
[1744220995793,0.05511314,117.65,117.63,39.24652545]
[1744220996094,598.89348467,117.77,117.65,39.18408467]
[1744220996292,39.18408467,117.75,117.65,39.18408467]
[1744220996595,39.18408467,117.75,117.63,39.18408467]
[1744220996789,39.18408467,117.71,117.61,47.95298467]
[1744220997092,39.18408467,117.69,117.58,39.18408467]
[1744220997288,0.06001919,117.7,117.6,39.18408467]
[1744220997492,4.4704,117.74,117.69,8.5024]
[1744220997695,4.4704,117.74,117.64,39.18408467]
[1744220998000,4.4704,117.74,117.61,4.5685]
[1744220998290,598.89348467,117.77,117.65,39.18408467]
[1744220998487,594.40868467,117.77,117.66,0.05906067]
[1744220998795,43.42868467,117.77,117.65,39.18408467]
[1744220999001,39.18408467,117.75,117.65,39.18408467]
[1744220999192,39.18408467,117.75,117.63,39.18408467]
[1744220999403,39.18408467,117.75,117.64,62.0]
[1744220999597,39.18408467,117.73,117.64,66.178]
[1744220999791,0.0616541,117.71,117.68,0.06550688]
[1744221000389,550.98,117.82,117.68,0.06550688]
[1744221000390,39.18408467,117.81,117.7,39.18408467]
[1744221000693,39.18408467,117.77,117.66,39.18408467]
[1744221000886,39.18408467,117.73,117.65,4.5526]
[1744221001088,39.18408467,117.71,117.64,4.178]
[1744221001289,39.18408467,117.71,117.61,4.5685]
[1744221001491,9.1558,117.76,117.62,39.18408467]
[1744221001687,0.04997625,117.69,117.66,0.06238571]
[1744221001989,39.18408467,117.69,117.58,4.5526]
[1744221002192,39.18408467,117.67,117.58,4.5526]
[1744221002392,39.18408467,117.73,117.61,39.18408467]
[1744221002686,9.1558,117.76,117.63,39.18408467]
[1744221002994,9.1558,117.76,117.58,4.5526]
[1744221002995,39.18408467,117.69,117.58,43.73668467]
[1744221003196,39.18408467,117.71,117.55,8.9596]
[1744221003197,39.18408467,117.65,117.55,8.9596]
[1744221003399,39.24751738,117.65,117.55,8.9596]
[1744221003594,39.18408467,117.63,117.5,4.59]
[1744221003901,39.18408467,117.57,117.46,39.18408467]
[1744221004201,594.63708467,117.62,117.49,39.18408467]
[1744221004503,4.5864,117.64,117.59,8.5096]
[1744221004829,5.49e-05,117.57,117.56,39.18408467]
[1744221005009,4.553,117.69,117.56,39.18408467]
[1744221005202,550.9,117.76,117.6,39.18408467]
[1744221005395,39.18408467,117.72,117.6,39.18408467]
[1744221005595,13.7187,117.75,117.62,39.18408467]
[1744221005793,13.7187,117.75,117.56,550.9]
[1744221005794,13.7187,117.75,117.64,39.18408467]
[1744221006002,0.05835911,117.7,117.67,0.06287231]
[1744221006295,0.05835911,117.7,117.69,8.5025]
[1744221006800,39.18408467,117.78,117.7,8.5015]
[1744221007002,8.8578,117.81,117.69,62.0]
[1744221007186,39.18408467,117.79,117.69,62.0]
[1744221007391,39.18408467,117.75,117.64,39.18408467]
[1744221007591,39.18408467,117.77,117.66,39.18408467]
[1744221007801,8.8578,117.81,117.7,39.18408467]
[1744221007993,4.5793,117.81,117.72,39.18408467]
[1744221008201,13.0844,117.89,117.76,39.18408467]
[1744221008399,39.18408467,117.84,117.61,17.016]
[1744221008595,39.18408467,117.84,117.71,39.18408467]
[1744221009097,39.18408467,117.84,117.62,13.0455]
[1744221009098,39.18408467,117.72,117.62,13.0455]
[1744221009299,559.3383,117.75,117.67,8.5036]
[1744221009499,559.3383,117.75,117.55,4.5354]
[1744221009500,39.18408467,117.72,117.55,4.5354]
[1744221009699,39.18408467,117.84,117.55,4.5354]
[1744221009700,3.2811578,117.97,117.71,39.18408467]
[1744221009895,39.18408467,117.89,117.75,39.18408467]
[1744221010288,39.18408467,117.89,117.83,0.05860234]
[1744221010487,39.18408467,117.84,117.69,39.18408467]
[1744221010693,39.18408467,117.8,117.67,4.5354]
[1744221011293,550.72,117.82,117.61,8.6506]
[1744221011294,39.18408467,117.74,117.61,8.6506]
[1744221011797,0.05860234,117.69,117.66,0.06011345]
[1744221012200,39.18408467,117.75,117.61,8.6506]
[1744221012401,4.54,117.77,117.6,39.18408467]
[1744221012402,39.18408467,117.72,117.66,8.5043]
[1744221012703,0.05860234,117.69,117.66,0.0599664]
[1744221013094,0.05860234,117.69,117.6,39.18408467]
[1744221013298,0.05860234,117.69,117.65,39.18408467]
[1744221013602,39.18408467,117.71,117.66,0.06204748]
[1744221013800,0.05561897,117.68,117.57,39.18408467]
[1744221013996,0.05561897,117.68,117.48,39.18408467]
[1744221013997,39.18408467,117.64,117.48,39.18408467]
[1744221014200,39.18408467,117.61,117.49,12.9566]
[1744221014389,39.18408467,117.66,117.52,39.18408467]
[1744221014390,550.74,117.64,117.52,39.18408467]
[1744221014598,4.2354,117.67,117.52,39.18408467]
[1744221014904,4.2354,117.67,117.58,39.18408467]
[1744221015093,0.05813061,117.61,117.58,39.24761397]
[1744221015290,8.8731,117.7,117.6,39.18408467]
[1744221015490,590.08408467,117.78,117.62,39.18408467]
[1744221015697,8.8598,117.77,117.68,39.18408467]
[1744221015900,39.18408467,117.76,117.64,39.18408467]
[1744221016202,8.8598,117.77,117.66,39.18408467]
[1744221016611,0.06122575,117.71,117.69,0.05752414]
[1744221016806,39.18408467,117.75,117.69,0.05752414]
[1744221016991,590.08408467,117.75,117.62,39.18408467]
[1744221017402,590.08408467,117.75,117.64,39.18408467]
[1744221017600,550.9,117.75,117.62,39.18408467]
[1744221017806,39.18408467,117.69,117.55,8.7851]
[1744221018107,39.18408467,117.69,117.57,39.18408467]
[1744221018899,43.35558467,117.71,117.59,39.18408467]
[1744221019105,4.1715,117.71,117.66,8.5042]
[1744221019314,550.9,117.75,117.64,39.18408467]
[1744221019496,0.05644993,117.66,117.64,0.05954732]
[1744221019899,39.18408467,117.72,117.61,62.0]
[1744221020207,39.18408467,117.62,117.55,8.5123]
[1744221020397,550.94,117.64,117.48,39.18408467]
[1744221020597,550.94,117.64,117.54,39.18408467]
[1744221020802,39.18408467,117.72,117.54,39.18408467]
[1744221021001,39.18408467,117.71,117.58,39.18408467]
[1744221021511,0.06436266,117.66,117.63,0.05716988]
[1744221021711,39.18408467,117.65,117.63,0.05716988]
[1744221021915,39.18408467,117.65,117.55,4.2433]
[1744221022097,0.06436266,117.66,117.56,39.18408467]
[1744221022312,0.06436266,117.66,117.6,39.18408467]
[1744221022510,39.18408467,117.71,117.64,8.5058]
[1744221022807,39.18408467,117.71,117.58,39.18408467]
[1744221023000,39.18408467,117.68,117.59,62.0]
[1744221023203,0.05616912,117.69,117.66,0.05944367]
[1744221023508,39.18408467,117.71,117.6,39.18408467]
[1744221023709,0.0598883,117.69,117.66,0.06187102]
[1744221024102,39.18408467,117.71,117.66,0.06187102]
[1744221024303,550.94,117.73,117.66,0.06187102]
[1744221024515,0.05896794,117.69,117.66,8.56617102]
[1744221024703,0.05896794,117.69,117.66,0.06187102]
[1744221024925,39.18408467,117.67,117.56,39.18408467]
[1744221025208,39.18408467,117.62,117.51,39.18408467]
[1744221025712,39.18408467,117.62,117.49,47.77248467]
[1744221025914,4.3454,117.65,117.56,39.18408467]
[1744221026210,0.05712703,117.57,117.54,39.24797768]
[1744221026410,39.18408467,117.62,117.51,39.18408467]
[1744221026712,39.18408467,117.64,117.53,39.18408467]
[1744221027006,0.05741825,117.57,117.54,0.06524425]
[1744221027218,39.18408467,117.64,117.53,39.18408467]
[1744221027407,39.18408467,117.6,117.57,0.02188236]
[1744221027601,39.18408467,117.58,117.47,8.518]
[1744221027917,39.18408467,117.52,117.4,52.23518467]
[1744221028103,39.18408467,117.52,117.41,3.1159709]
[1744221028303,39.18408467,117.52,117.4,47.88578467]
[1744221028504,39.18408467,117.52,117.41,3.11986683]
[1744221028705,39.18408467,117.56,117.44,39.18408467]
[1744221029013,39.18408467,117.58,117.46,39.18408467]
[1744221029201,39.18408467,117.56,117.44,39.18408467]
[1744221029415,39.18408467,117.56,117.45,3.1254248]
[1744221029600,39.18408467,117.58,117.4,8.7017]
[1744221029797,39.18408467,117.58,117.51,8.5152]
[1744221030302,9.0253,117.59,117.5,39.18408467]
[1744221030507,0.06266674,117.56,117.52,39.18408467]
[1744221030702,0.06266674,117.56,117.55,8.5128]
[1744221030903,0.06266674,117.56,117.53,0.05542462]
[1744221031110,78.36816934,117.54,117.4,551.28]
[1744221031410,4.3198,117.53,117.44,39.18408467]
[1744221031611,39.18408467,117.6,117.48,39.18408467]
[1744221031800,4.3198,117.65,117.54,39.18408467]
[1744221032004,4.3198,117.65,117.56,39.18408467]
[1744221032203,39.18408467,117.64,117.5,8.51]
[1744221032409,0.06276176,117.61,117.58,0.05615872]
[1744221032713,4.3198,117.65,117.58,0.05615872]
[1744221032904,0.05967069,117.61,117.6,8.5091]
[1744221033102,4.2509,117.69,117.58,0.05615872]
[1744221033415,39.18408467,117.63,117.5,8.51]
[1744221033609,39.18408467,117.59,117.49,43.53268467]
[1744221033916,39.18408467,117.59,117.49,4.3486]
[1744221034118,39.18408467,117.61,117.49,66.3486]
[1744221034311,39.18408467,117.61,117.55,8.5125]
[1744221034520,39.18408467,117.61,117.53,0.05601746]
[1744221034718,0.06189267,117.56,117.52,39.18408467]
[1744221035018,39.18408467,117.66,117.56,0.05636107]
[1744221035219,39.18408467,117.64,117.56,0.05636107]
[1744221035410,39.18408467,117.63,117.51,39.18408467]
[1744221035716,47.90808467,117.69,117.57,39.18408467]
[1744221036017,47.90808467,117.69,117.59,8.5098]
[1744221036212,0.05682943,117.64,117.62,0.05843928]
[1744221036413,0.05682943,117.64,117.52,8.8224]
[1744221036607,0.05682943,117.64,117.56,39.18408467]
[1744221036923,39.18408467,117.65,117.54,39.18408467]
[1744221037117,39.18408467,117.65,117.52,8.8224]
[1744221037321,39.18408467,117.63,117.52,8.8224]
[1744221037513,39.18408467,117.65,117.54,39.18408467]
[1744221037709,0.0574278,117.6,117.58,39.18408467]
[1744221037913,4.4731,117.69,117.58,39.18408467]
[1744221038117,39.18408467,117.76,117.59,3.11494594]
[1744221038313,39.18408467,117.72,117.6,101.18408467]
[1744221038508,564.1061,117.77,117.6,62.0]
[1744221038509,39.18408467,117.7,117.6,62.0]
[1744221038823,39.18408467,117.64,117.54,39.18408467]
[1744221039013,8.5973,117.69,117.56,39.18408467]
[1744221039220,0.06273426,117.6,117.58,0.06132936]
[1744221039409,4.2488,117.68,117.58,39.24541403]
[1744221039722,39.18408467,117.67,117.56,39.18408467]
[1744221040422,4.2488,117.68,117.58,39.18408467]
[1744221040810,5.645e-05,117.63,117.6,39.23802473]
[1744221041007,5.645e-05,117.63,117.62,39.18408467]
[1744221041204,39.18408467,117.71,117.6,39.18408467]
[1744221041416,39.18408467,117.67,117.56,39.18408467]
[1744221041623,39.18408467,117.73,117.61,39.18408467]
[1744221041825,590.44408467,117.75,117.63,39.18408467]
[1744221042113,0.04817742,117.68,117.66,0.05765573]
[1744221042515,34.79550528,117.83,117.66,86.86816934]
[1744221042708,1.69750466,117.82,117.72,39.18408467]
[1744221042911,1.69750466,117.82,117.74,39.18408467]
[1744221043114,1.69750466,117.82,117.77,8.4964]
[1744221043323,1.69750466,117.82,117.72,39.18408467]
[1744221043719,1.69750466,117.82,117.76,39.2416961]
[1744221044023,1.69750466,117.82,117.8,39.18408467]
[1744221044325,91.99405912,117.84,117.83,8.4925]
[1744221044326,25.78255912,117.84,117.83,8.4925]
[1744221044718,46.57738864,117.94,117.82,39.18408467]
[1744221044919,46.57738864,117.94,117.84,39.18408467]
[1744221045314,46.57738864,117.94,117.88,0.062343]
[1744221046727,39.18408467,117.91,117.8,39.18408467]
[1744221046924,39.18408467,117.91,117.79,4.4146]
[1744221047229,39.18408467,117.85,117.7,550.78]
[1744221047423,39.18408467,117.85,117.72,39.18408467]
[1744221047620,39.18408467,117.84,117.74,39.18408467]
[1744221047820,39.18408467,117.89,117.78,39.18408467]
[1744221048027,0.05423397,117.8,117.77,0.05777522]
[1744221048214,39.18408467,117.87,117.77,39.18408467]
[1744221048417,39.18408467,117.87,117.77,39.24648399]
[1744221048741,39.18408467,117.89,117.77,39.18408467]
[1744221049023,39.18408467,117.82,117.81,0.06434845]
[1744221049324,39.18408467,117.82,117.69,43.59368467]
[1744221049531,39.18408467,117.79,117.69,43.59368467]
[1744221049714,39.18408467,117.79,117.69,4.4096]
[1744221049917,39.18408467,117.75,117.65,39.18408467]
[1744221050119,39.18408467,117.79,117.69,39.18408467]
[1744221050422,43.42898467,117.81,117.69,39.24395834]
[1744221050825,39.18408467,117.79,117.67,39.18408467]
[1744221051623,4.4849,117.82,117.71,39.18408467]
[1744221051926,4.4849,117.82,117.73,39.18408467]
[1744221052527,43.61118467,117.83,117.71,39.18408467]
[1744221052733,39.18408467,117.81,117.71,39.18408467]
[1744221052939,39.18408467,117.73,117.66,8.5043]
[1744221053225,39.18408467,117.67,117.57,43.36088467]
[1744221053421,39.18408467,117.67,117.57,4.1768]
[1744221053934,39.18408467,117.67,117.61,0.06380539]
[1744221054432,39.18408467,117.65,117.61,0.06380539]
[1744221054621,8.6906,117.72,117.61,0.06380539]
[1744221054821,39.18408467,117.69,117.57,39.18408467]
[1744221055127,47.87468467,117.72,117.65,0.0621026]
[1744221055329,8.6906,117.72,117.63,39.18408467]
[1744221055629,39.18408467,117.65,117.56,62.0]
[1744221055827,39.18408467,117.63,117.55,4.363]
[1744221056530,39.18408467,117.65,117.58,0.06492895]
[1744221056732,39.18408467,117.65,117.61,8.5078]
[1744221056924,39.18408467,117.67,117.58,0.06492895]
[1744221057120,39.18408467,117.67,117.55,43.54708467]
[1744221057326,39.18408467,117.65,117.55,43.54708467]
[1744221057535,39.18408467,117.65,117.61,0.06509437]
[1744221058236,47.87468467,117.72,117.61,0.06509437]
[1744221058437,39.18408467,117.68,117.61,0.06509437]
[1744221058640,47.87468467,117.72,117.59,39.18408467]
[1744221058820,47.87468467,117.72,117.63,0.05929261]
[1744221059138,47.87468467,117.72,117.6,62.0]
[1744221059139,39.18408467,117.7,117.6,62.0]
[1744221059528,39.18408467,117.7,117.66,0.06272714]
[1744221059933,39.18408467,117.68,117.57,39.18408467]
[1744221060435,39.18408467,117.64,117.52,39.18408467]
[1744221060624,47.87468467,117.72,117.5,4.1768]
[1744221060625,39.18408467,117.6,117.51,4.4107]
[1744221060829,39.18408467,117.58,117.51,4.4107]
[1744221061030,39.18408467,117.58,117.5,4.1768]
[1744221061236,39.18408467,117.58,117.53,0.05527526]
[1744221061237,0.05458679,117.56,117.53,0.05527526]
[1744221061633,39.18408467,117.67,117.54,39.18408467]
[1744221061837,39.18408467,117.65,117.55,8.5654]
[1744221062141,39.18408467,117.61,117.48,304.0]
[1744221062328,39.18408467,117.6,117.49,49.3040572]
[1744221062739,39.18408467,117.62,117.49,49.3040572]
[1744221062942,39.18408467,117.64,117.53,39.23994833]
[1744221063246,39.18408467,117.64,117.54,550.94]
[1744221063425,39.18408467,117.62,117.5,0.2588]
[1744221063625,39.18408467,117.58,117.49,10.11997253]
[1744221063931,39.18408467,117.56,117.49,1.70227253]
[1744221064136,39.18408467,117.57,117.52,0.06075226]
[1744221064444,39.18408467,117.57,117.51,8.5151]
[1744221064638,39.18408467,117.58,117.49,1.70227253]
[1744221064836,39.18408467,117.58,117.53,0.06068912]
[1744221065227,39.18408467,117.56,117.53,0.06068912]
[1744221065738,0.06068912,117.56,117.49,1.70227253]
[1744221065930,39.18408467,117.53,117.49,1.70227253]
[1744221066135,39.18408467,117.51,117.39,47.89028467]
[1744221066328,39.18408467,117.49,117.39,8.7062]
[1744221066534,39.18408467,117.47,117.35,39.18408467]
[1744221066733,0.06068912,117.45,117.43,0.05842194]
[1744221067132,39.18408467,117.58,117.48,39.18408467]
[1744221067333,560.1185,117.59,117.44,39.18408467]
[1744221067540,39.18408467,117.58,117.46,39.18408467]
[1744221067728,560.1185,117.59,117.36,39.18408467]
[1744221067729,39.18408467,117.52,117.36,39.18408467]
[1744221068038,560.1185,117.59,117.5,8.5163]
[1744221068039,39.18408467,117.56,117.5,8.5163]
[1744221068246,8.8385,117.59,117.48,39.18408467]
[1744221068428,8.8385,117.59,117.43,551.34062998]
[1744221068429,39.18408467,117.54,117.43,551.34062998]
[1744221068634,43.74248467,117.58,117.45,39.18408467]
[1744221068835,4.5584,117.58,117.49,39.18408467]
[1744221069033,39.18408467,117.62,117.51,39.18408467]
[1744221069234,8.8172,117.65,117.55,39.18408467]
[1744221069536,39.18408467,117.62,117.55,0.05897301]
[1744221069943,48.00128467,117.65,117.53,39.18408467]
[1744221070239,8.8172,117.65,117.57,0.0611214]
[1744221070441,551.28,117.68,117.61,39.18408467]
[1744221070633,590.60408467,117.75,117.63,39.18408467]
[1744221070829,590.60408467,117.75,117.65,39.18408467]
[1744221070830,551.42,117.75,117.65,39.18408467]
[1744221071030,39.18408467,117.71,117.63,0.05554741]
[1744221071240,39.18408467,117.73,117.61,39.18408467]
[1744221071440,39.18408467,117.71,117.66,0.05694681]
[1744221071645,590.60408467,117.75,117.66,0.05694681]
[1744221071943,1.69865806,117.74,117.67,39.18408467]
[1744221072130,1.69865806,117.74,117.71,39.18408467]
[1744221072328,551.42,117.82,117.73,39.18408467]
[1744221072632,551.42,117.82,117.74,62.0]
[1744221073345,39.18408467,117.86,117.77,0.05805884]
[1744221073540,39.18408467,117.84,117.77,0.05805884]
[1744221073741,39.18408467,117.86,117.74,62.0]
[1744221074045,39.18408467,117.86,117.79,0.05831623]
[1744221074338,603.63768467,117.89,117.82,8.4926]
[1744221074640,603.63768467,117.89,117.79,0.05831623]
[1744221074641,39.18408467,117.87,117.79,0.05831623]
[1744221074948,603.63768467,117.89,117.78,39.18408467]
[1744221075242,603.63768467,117.89,117.82,0.06478813]
[1744221075243,559.9462,117.89,117.82,0.06478813]
[1744221075538,39.18408467,117.83,117.72,39.18408467]
[1744221075843,39.18408467,117.81,117.74,8.4985]
[1744221076042,4.553,117.8,117.76,0.05515032]
[1744221076445,39.18408467,117.86,117.76,39.23923499]
[1744221076642,4.553,117.88,117.78,39.18408467]
[1744221077143,4.553,117.88,117.82,0.06537978]
[1744221078143,39.18408467,117.87,117.82,0.06537978]
[1744221078437,39.18408467,117.85,117.82,0.06537978]
[1744221078643,4.553,117.88,117.82,0.06537978]
[1744221078836,4.2383,117.93,117.84,39.18408467]
[1744221079037,39.18408467,117.97,117.86,39.18408467]
[1744221079446,39.18408467,117.95,117.9,0.06205406]
[1744221079846,39.18408467,117.95,117.83,43.49578467]
[1744221080045,39.18408467,117.95,117.83,4.3117]
[1744221080246,39.18408467,117.91,117.84,8.4916]
[1744221080546,4.4333,117.9,117.79,43.49138467]
[1744221081040,4.4333,117.9,117.83,39.18408467]
[1744221081444,550.72,117.92,117.83,39.18408467]
[1744221081642,0.0570583,117.88,117.85,39.24538796]
[1744221082039,1.69577751,117.94,117.86,62.0]
[1744221082234,39.18408467,117.93,117.85,0.06130329]
[1744221082446,39.18408467,117.93,117.83,39.18408467]
[1744221082636,1.69577751,117.94,117.83,39.18408467]
[1744221082837,1.69577751,117.94,117.81,39.18408467]